bitfinex/quotes_SOLUSD_20250724
["timestamp","ask_amount","ask_price","bid_price","bid_amount"]
[1753338660645,3.82142486,184.1,184.05,3.82142486]
[1753338660849,0.66,184.09,184.04,3.82142486]
[1753338661060,4.48142486,184.09,184.04,3.82142486]
[1753338661369,4.48142486,184.09,184.04,4.51142486]
[1753338661746,39.02,184.1,184.08,3.82142486]
[1753338662567,0.66,184.09,184.03,0.69]
[1753338662738,3.82142486,184.06,184.02,0.06]
[1753338662939,43.50142486,184.05,184.02,0.06]
[1753338663239,3.82142486,184.03,184.02,0.06]
[1753338663641,39.02,184.04,184.02,4.57142486]
[1753338663950,39.02,184.04,184.03,0.69]
[1753338664150,39.02,184.04,184.02,0.06]
[1753338664353,39.02,184.04,184.02,0.75]
[1753338664845,39.02,184.04,184.02,4.57142486]
[1753338665372,39.02,184.04,184.02,0.75]
[1753338666447,39.02,184.07,184.03,4.51142486]
[1753338666638,39.02,184.07,184.04,4.51142486]
[1753338666846,39.02,184.07,184.03,3.82142486]
[1753338667155,0.66,184.06,184.02,3.88142486]
[1753338667361,3.82142486,184.04,184.02,0.06]
[1753338667543,42.84142486,184.03,184.02,0.06]
[1753338667864,48.9353215,184.03,184.02,0.06]
[1753338668241,62.52006311,184.03,183.94,0.63]
[1753338668454,3.82142486,183.99,183.94,0.63]
[1753338668659,39.68,183.98,183.94,3.82142486]
[1753338668986,43.50142486,183.98,183.93,3.88142486]
[1753338669154,3.82142486,183.95,183.93,0.06]
[1753338669361,42.84142486,183.94,183.93,0.06]
[1753338669558,43.50142486,183.94,183.93,0.06]
[1753338669865,48.93798025,183.94,183.93,0.06]
[1753338670557,65.72266422,183.94,183.93,1e-08]
[1753338671152,26.0,183.91,183.83,0.1]
[1753338671477,6.25391135,183.84,183.83,0.1]
[1753338671788,50.71342396,183.84,183.83,0.1]
[1753338672280,6.25391135,183.83,183.78,6.25391135]
[1753338672466,50.71342396,183.84,183.79,0.69]
[1753338672675,51.37342396,183.84,183.78,6.25391135]
[1753338673277,6.25391135,183.81,183.75,12.76051135]
[1753338673482,39.02,183.8,183.75,12.76051135]
[1753338673667,39.02,183.8,183.75,13.43051135]
[1753338673865,44.46084777,183.8,183.75,13.43051135]
[1753338674191,50.71486939,183.8,183.73,0.67]
[1753338674393,6.25391135,183.78,183.73,6.92391135]
[1753338674684,39.04,183.77,183.73,6.92391135]
[1753338675058,39.04,183.77,183.75,6.25391135]
[1753338675290,39.04,183.79,183.76,6.92391135]
[1753338675464,0.69,183.86,183.72,7.08766587]
[1753338675465,39.04,183.83,183.78,6.25391135]
[1753338675664,39.04,183.83,183.82,6.25391135]
[1753338676319,11.69167717,183.9,183.82,12.3640158]
[1753338676614,39.04,183.89,183.83,2.3148]
[1753338676910,39.04,183.89,183.86,6.25391135]
[1753338677302,45.29391135,183.89,183.84,6.25391135]
[1753338677492,0.69,183.88,183.83,6.25391135]
[1753338677908,6.12835472,183.88,183.84,6.25391135]
[1753338678425,39.04,183.89,183.84,6.25391135]
[1753338678624,0.69,183.94,183.88,6.25391135]
[1753338678921,39.04,183.93,183.88,6.25391135]
[1753338679120,39.04,183.93,183.89,0.67]
[1753338679740,39.04,183.93,183.88,6.25391135]
[1753338679741,6.94391135,183.99,183.92,6.25391135]
[1753338679892,44.47537341,183.98,183.94,6.25391135]
[1753338680086,0.69,183.97,183.92,6.25391135]
[1753338680712,50.72928476,183.98,183.91,6.25391135]
[1753338680713,6.94391135,183.96,183.91,6.25391135]
[1753338680885,0.69,183.95,183.91,6.25391135]
[1753338681084,39.04,183.94,183.92,6.25391135]
[1753338682391,0.69,183.98,183.9,5.43768585]
[1753338682392,39.04,183.98,183.93,6.92391135]
[1753338682605,39.04,183.98,183.95,6.25391135]
[1753338683188,6.25391135,183.96,183.89,12.17912303]
[1753338683415,39.04,183.95,183.92,6.25391135]
[1753338683636,39.04,183.95,183.91,6.25391135]
[1753338684026,39.73,183.95,183.89,6.7411]
[1753338684333,45.1663093,183.95,183.9,6.25391135]
[1753338684923,44.4763093,183.95,183.9,6.25391135]
[1753338685136,44.4763093,183.95,183.89,6.0711]
[1753338685334,44.4763093,183.95,183.9,6.25391135]
[1753338685634,6.25391135,183.93,183.87,6.25391135]
[1753338685823,39.04,183.92,183.88,6.25391135]
[1753338686019,39.04,183.92,183.89,6.92391135]
[1753338686232,39.04,183.92,183.88,6.25391135]
[1753338686433,6.25391135,183.94,183.89,6.25391135]
[1753338686641,39.04,183.93,183.91,6.25391135]
[1753338686819,39.04,183.93,183.91,6.92391135]
[1753338687021,39.04,183.93,183.92,6.92391135]
[1753338687324,39.04,183.93,183.9,6.25391135]
[1753338687736,6.25391135,183.91,183.85,6.25391135]
[1753338687935,39.04,183.9,183.85,6.25391135]
[1753338688236,39.04,183.9,183.85,6.92391135]
[1753338688426,39.04,183.9,183.87,6.25391135]
[1753338688617,39.04,183.9,183.87,6.92391135]
[1753338688818,39.04,183.9,183.87,6.25391135]
[1753338689318,39.04,183.9,183.86,6.25391135]
[1753338689743,6.25391135,183.88,183.82,16.31391135]
[1753338690044,0.41,183.89,183.84,6.25391135]
[1753338690045,39.04,183.87,183.84,6.25391135]
[1753338690231,39.04,183.87,183.82,15.49999994]
[1753338690422,39.04,183.87,183.84,6.25391135]
[1753338691826,34.47871126,183.87,183.84,6.25391135]
[1753338692631,29.04,183.87,183.84,6.25391135]
[1753338692842,29.04,183.87,183.86,6.25391135]
[1753338693030,5.8474315,183.92,183.86,6.25391135]
[1753338693229,13.59095673,183.95,183.89,6.25391135]
[1753338693230,5.46688946,183.93,183.89,6.25391135]
[1753338693429,39.04,183.91,183.89,6.25391135]
[1753338693860,39.04,183.91,183.88,6.25391135]
[1753338694058,6.25391135,183.89,183.82,0.73]
[1753338694225,39.04,183.88,183.84,6.25391135]
[1753338694425,44.47851605,183.88,183.84,6.25391135]
[1753338694772,6.94391135,183.87,183.82,6.31391135]
[1753338694933,0.69,183.86,183.82,6.31391135]
[1753338695134,39.04,183.85,183.82,6.31391135]
[1753338695943,39.04,183.85,183.84,6.25391135]
[1753338696754,39.04,183.85,183.83,6.25391135]
[1753338697244,44.4792249,183.85,183.82,0.06]
[1753338697550,44.4792249,183.85,183.83,6.25391135]
[1753338697926,44.4792249,183.85,183.82,0.06]
[1753338697927,50.73313625,183.85,183.82,0.06]
[1753338698128,0.69,183.84,183.82,0.06]
[1753338698435,45.1692249,183.85,183.82,0.06]
[1753338698843,0.69,183.84,183.82,0.06]
[1753338699346,0.69,183.83,183.82,0.06]
[1753338699850,6.94391135,183.83,183.82,0.06]
[1753338700356,12.38371986,183.83,183.82,0.06]
[1753338700546,39.73,183.83,183.82,0.06]
[1753338700736,44.47980851,183.83,183.82,0.06]
[1753338700932,45.16980851,183.83,183.82,0.06]
[1753338701454,44.47980851,183.83,183.82,0.06]
[1753338701651,39.04,183.83,183.82,0.06]
[1753338702353,44.47980851,183.83,183.82,0.06]
[1753338702869,51.42371986,183.83,183.82,0.06]
[1753338703159,77.42371986,183.83,183.82,0.06]
[1753338703764,94.20840383,183.83,183.82,0.06]
[1753338704052,68.20840383,183.83,183.82,1e-08]
[1753338704831,61.95449248,183.83,183.82,1e-08]
[1753338705043,68.20840383,183.83,183.82,1e-08]
[1753338706060,26.0,183.8,183.74,0.06]
[1753338706248,115.26087906,183.83,183.74,0.06]
[1753338706249,32.25391135,183.76,183.74,0.06]
[1753338706450,39.04,183.75,183.74,0.06]
[1753338707142,39.75,183.75,183.74,0.06]
[1753338707358,46.00391135,183.75,183.74,0.06]
[1753338707559,39.75,183.75,183.74,0.06]
[1753338708060,45.19217687,183.75,183.74,0.06]
[1753338708640,26.0,183.78,183.74,6.99391135]
[1753338708844,39.04,183.77,183.75,0.68]
[1753338709056,5.43978327,183.84,183.76,6.93391135]
[1753338709256,39.04,183.8,183.77,0.68]
[1753338709462,39.04,183.8,183.78,0.68]
[1753338710160,44.48082117,183.8,183.74,8.7137]
[1753338710664,44.48082117,183.8,183.77,6.25391135]
[1753338711353,0.71,183.79,183.76,6.25391135]
[1753338711558,39.04,183.78,183.76,6.25391135]
[1753338712054,39.04,183.78,183.74,2.3418]
[1753338712055,45.19153525,183.78,183.74,6.31391135]
[1753338712764,6.96391135,183.77,183.74,0.06]
[1753338712972,45.31391135,183.76,183.74,0.06]
[1753338713181,46.02391135,183.76,183.74,0.06]
[1753338713341,6.96391135,183.75,183.66,0.06]
[1753338713550,6.25391135,183.72,183.67,6.25391135]
[1753338713745,39.75,183.71,183.66,6.31391135]
[1753338713969,39.75,183.71,183.67,6.25391135]
[1753338713970,5.44365813,183.7,183.67,6.25391135]
[1753338714282,26.0,183.73,183.69,6.25391135]
[1753338714450,39.04,183.72,183.66,0.06]
[1753338714651,39.04,183.72,183.68,6.25391135]
[1753338715375,39.04,183.72,183.66,0.74]
[1753338715376,0.71,183.71,183.67,6.25391135]
[1753338715549,45.29391135,183.72,183.67,6.25391135]
[1753338716164,5.44336182,183.71,183.67,6.25391135]
[1753338716569,44.48314007,183.72,183.69,6.25391135]
[1753338717053,39.04,183.72,183.69,0.68]
[1753338717262,39.04,183.72,183.7,6.25391135]
[1753338717574,44.4831086,183.72,183.7,6.25391135]
[1753338717969,44.48309879,183.72,183.7,6.25391135]
[1753338718364,44.48309879,183.72,183.67,0.68]
[1753338718661,44.48309879,183.72,183.7,6.25391135]
[1753338719065,5.44247305,183.74,183.7,6.25391135]
[1753338719270,39.06,183.73,183.71,6.25391135]
[1753338719468,39.06,183.73,183.72,6.93391135]
[1753338720270,5.44099243,183.79,183.72,6.93391135]
[1753338720471,39.06,183.78,183.76,6.25391135]
[1753338721072,39.06,183.78,183.77,6.25391135]
[1753338721274,0.03,183.8,183.77,6.93391135]
[1753338721472,0.03,183.8,183.79,6.25391135]
[1753338721881,0.03,183.8,183.79,6.93391135]
[1753338722982,0.03,183.8,183.79,12.37490378]
[1753338723383,0.03,183.8,183.79,35.4134991]
[1753338723692,0.03,183.84,183.83,6.25391135]
[1753338724076,0.03,183.84,183.83,6.93391135]
[1753338724476,0.03,183.88,183.84,16.78468397]
[1753338724692,0.03,183.88,183.87,6.25391135]
[1753338725292,0.03,183.88,183.87,6.93391135]
[1753338726393,0.03,183.88,183.87,12.37253646]
[1753338726580,0.03,183.88,183.87,6.93391135]
[1753338727900,0.03,183.91,183.87,29.70108294]
[1753338728108,0.03,183.93,183.9,29.29250667]
[1753338728283,0.03,183.93,183.92,12.5078227]
[1753338728485,0.03,183.93,183.92,17.94496928]
[1753338728688,0.03,183.93,183.92,18.62496928]
[1753338728885,39.04,184.01,183.93,7.8247]
[1753338729091,44.47459757,184.01,183.98,6.25391135]
[1753338729280,44.47454543,184.01,183.98,6.25391135]
[1753338729485,39.04,184.01,183.98,6.25391135]
[1753338730389,39.04,184.01,183.98,6.93391135]
[1753338730580,5.43363612,184.04,183.98,6.93391135]
[1753338730909,39.02,184.05,183.98,12.36928476]
[1753338731395,5.43276233,184.07,183.98,29.15396873]
[1753338731600,5.43242068,184.08,183.99,16.78468397]
[1753338731901,5.43242068,184.08,184.05,6.25391135]
[1753338732312,6.14242068,184.08,184.05,6.25391135]
[1753338732676,26.0,184.06,183.97,0.68]
[1753338732875,6.25391135,184.04,183.99,6.25391135]
[1753338733101,26.0,184.06,184.0,6.25391135]
[1753338733301,5.43242068,184.08,184.04,6.25391135]
[1753338733513,5.43242068,184.08,184.06,6.25391135]
[1753338733877,39.02,184.09,184.02,0.67]
[1753338734183,39.02,184.09,184.08,6.25391135]
[1753338734385,39.02,184.09,183.99,43.32819176]
[1753338734386,39.02,184.09,184.07,6.25391135]
[1753338734579,44.45213507,184.09,184.07,6.25391135]
[1753338734812,44.45213507,184.09,184.06,6.25391135]
[1753338734989,6.93391135,184.08,184.01,0.67]
[1753338735302,6.25391135,184.07,183.97,0.67]
[1753338735614,6.93391135,184.07,184.02,6.25391135]
[1753338735809,0.68,184.06,184.02,6.25391135]
[1753338736507,6.93391135,184.05,184.0,6.25391135]
[1753338736707,5.43389664,184.03,183.99,6.25391135]
[1753338737409,5.43389664,184.03,184.0,6.25391135]
[1753338738214,0.68,184.02,183.98,6.25391135]
[1753338738410,6.93391135,184.01,183.96,6.25391135]
[1753338738615,5.43507799,183.99,183.96,6.25391135]
[1753338738811,44.43507799,183.99,183.96,6.25391135]
[1753338739536,44.43507799,183.99,183.86,0.54389209]
[1753338739537,0.68,183.98,183.89,8.4261]
[1753338739726,6.93391135,183.98,183.89,8.4261]
[1753338739918,6.93391135,183.98,183.92,6.25391135]
[1753338740118,32.25391135,183.96,183.91,6.25391135]
[1753338740628,5.43655539,183.94,183.9,6.25391135]
[1753338740835,39.0,183.93,183.9,6.25391135]
[1753338741008,39.0,183.93,183.87,0.67]
[1753338741009,39.68,183.93,183.89,6.25391135]
[1753338741825,0.68,183.92,183.88,6.25391135]
[1753338742023,39.0,183.93,183.89,6.25391135]
[1753338742840,5.43714658,183.92,183.89,6.25391135]
[1753338743010,44.43687345,183.93,183.91,6.25391135]
[1753338743526,44.43687345,183.93,183.9,6.25391135]
[1753338743720,44.43687345,183.93,183.89,6.25391135]
[1753338743922,44.43687345,183.93,183.88,6.25391135]
[1753338743923,0.68,183.92,183.88,6.25391135]
[1753338744650,44.43687345,183.93,183.9,6.25391135]
[1753338744942,39.0,183.96,183.92,6.25391135]
[1753338745238,39.0,183.96,183.95,6.25391135]
[1753338746349,44.43596434,183.96,183.95,6.25391135]
[1753338746642,44.43596434,183.96,183.93,0.67]
[1753338746853,0.68,183.95,183.87,0.67]
[1753338747135,6.25391135,183.94,183.89,6.25391135]
[1753338747313,0.68,183.95,183.9,6.25391135]
[1753338748223,6.93391135,183.95,183.9,6.25391135]
[1753338748426,6.11655539,183.94,183.9,6.25391135]
[1753338748623,5.43655539,183.94,183.9,6.25391135]
[1753338749446,39.0,183.94,183.93,6.25391135]
[1753338749826,39.0,183.94,183.93,6.92391135]
[1753338750429,0.68,184.0,183.93,6.92391135]
[1753338750628,26.0,183.98,183.96,6.25391135]
[1753338750953,44.43419193,184.02,183.97,6.92391135]
[1753338751253,39.0,184.02,184.01,6.25391135]
[1753338751437,39.0,184.02,184.01,6.92391135]
[1753338751618,39.0,184.02,184.01,6.25391135]
[1753338752540,44.43419193,184.02,184.01,6.25391135]
[1753338752725,44.43419193,184.02,183.99,6.25391135]
[1753338753129,44.43419193,184.02,184.0,6.25391135]
[1753338753334,42.99990812,184.02,184.0,6.25391135]
[1753338753929,37.56571619,184.02,184.01,6.25391135]
[1753338754245,39.0,184.04,184.01,6.92391135]
[1753338754550,39.0,184.04,184.03,6.25391135]
[1753338754738,44.43301097,184.06,184.03,6.25391135]
[1753338755050,44.43301097,184.06,184.05,6.25391135]
[1753338755246,0.03,184.02,183.99,0.06]
[1753338755429,0.03,184.02,184.01,6.25391135]
[1753338755842,0.03,184.02,184.01,6.92391135]
[1753338757635,0.03,184.02,184.01,12.3583986]
[1753338757952,0.03,184.02,184.01,29.14308257]
[1753338758135,0.03,184.02,184.01,43.10039392]
[1753338758329,44.44184217,184.1,184.01,43.10039392]
[1753338758533,44.44184217,184.1,184.09,6.25391135]
[1753338758739,39.01,184.1,184.09,6.25391135]
[1753338758941,39.01,184.1,184.08,6.25391135]
[1753338759731,39.01,184.1,184.08,6.25391135]
[1753338759922,44.44183052,184.1,184.08,6.25391135]
[1753338760547,44.44183052,184.1,184.02,0.67]
[1753338760755,44.44183052,184.1,184.07,6.25391135]
[1753338761051,45.12183052,184.1,184.07,6.25391135]
[1753338761425,44.44183052,184.1,184.07,6.25391135]
[1753338762145,39.01,184.1,184.09,6.25391135]
[1753338762748,44.44183052,184.1,184.07,6.25391135]
[1753338762949,44.44183052,184.1,184.06,6.25391135]
[1753338762950,0.68,184.09,184.06,6.25391135]
[1753338764039,12.35633203,184.08,184.03,6.25391135]
[1753338764243,39.65,184.07,184.03,6.25391135]
[1753338764446,38.98,184.07,184.03,6.25391135]
[1753338764750,38.98,184.07,184.04,6.25391135]
[1753338765544,38.98,184.07,184.05,6.25391135]
[1753338766055,5.43301097,184.06,184.05,6.25391135]
[1753338766932,5.43301097,184.06,184.04,6.25391135]
[1753338767268,44.41272158,184.07,184.04,6.25391135]
[1753338767436,44.41272158,184.07,184.05,6.25391135]
[1753338768357,0.03,184.1,184.06,6.25391135]
[1753338768651,0.03,184.1,184.09,6.25391135]
[1753338769727,5.46183052,184.1,184.09,6.25391135]
[1753338770662,5.46183052,184.1,184.08,6.25391135]
[1753338771232,5.46183052,184.1,184.09,6.25391135]
[1753338772358,5.46183052,184.1,184.08,6.25391135]
[1753338773639,6.13183052,184.1,184.08,6.25391135]
[1753338774143,5.46183052,184.1,184.08,6.25391135]
[1753338775243,0.03,184.1,184.09,6.25391135]
[1753338775467,0.03,184.1,184.09,6.91391135]
[1753338775690,0.2,184.12,184.09,6.91391135]
[1753338775967,0.2,184.12,184.11,6.25391135]
[1753338776340,0.2,184.12,184.11,6.91391135]
[1753338777570,0.2,184.12,184.11,6.25391135]
[1753338777871,0.2,184.12,184.11,6.91391135]
[1753338778242,0.2,184.12,184.11,6.25391135]
[1753338778564,0.2,184.12,184.11,29.13013081]
[1753338778775,0.03,184.14,184.12,18.34338397]
[1753338779060,0.03,184.21,184.19,6.25391135]
[1753338779265,0.03,184.21,184.2,6.25391135]
[1753338779562,0.03,184.21,184.2,28.46747697]
[1753338779859,0.03,184.21,184.2,23.69859532]
[1753338780074,0.03,184.21,184.2,6.91391135]
[1753338780240,0.03,184.21,184.16,0.66]
[1753338780443,0.67,184.2,184.13,6.6874]
[1753338780642,0.67,184.2,184.18,6.25391135]
[1753338780848,38.99,184.21,184.19,6.25391135]
[1753338781364,0.03,184.21,184.2,6.91391135]
[1753338782761,0.03,184.21,184.2,6.25391135]
[1753338782958,5.45860913,184.21,184.15,0.66]
[1753338783172,5.45860913,184.21,184.2,6.25391135]
[1753338783478,0.7,184.21,184.13,6.0274]
[1753338783674,0.7,184.21,184.16,6.25391135]
[1753338783887,6.95391135,184.21,184.16,6.25391135]
[1753338784176,6.92391135,184.2,184.12,1.5587]
[1753338784382,38.94,184.19,184.15,6.25391135]
[1753338784672,38.94,184.19,184.14,6.25391135]
[1753338784673,0.67,184.18,184.14,6.25391135]
[1753338784893,0.67,184.17,184.14,6.25391135]
[1753338785060,0.67,184.16,184.14,6.25391135]
[1753338785261,38.94,184.15,184.14,6.25391135]
[1753338785581,44.37035568,184.15,184.14,6.25391135]
[1753338785751,44.37035568,184.15,184.13,6.25391135]
[1753338786073,0.67,184.14,184.11,6.25391135]
[1753338786678,0.67,184.13,184.07,27.6421]
[1753338786881,6.92391135,184.13,184.05,6.3044]
[1753338787076,6.92391135,184.13,184.09,6.25391135]
[1753338787077,0.67,184.13,184.09,6.25391135]
[1753338787282,0.67,184.12,184.08,6.25391135]
[1753338787581,44.37153549,184.11,184.08,6.25391135]
[1753338787877,45.04153549,184.11,184.08,6.25391135]
[1753338788073,0.67,184.1,184.06,6.25391135]
[1753338788257,0.67,184.09,184.05,6.25391135]
[1753338788456,6.25391135,184.1,184.05,6.25391135]
[1753338788457,0.67,184.08,184.05,6.25391135]
[1753338788696,38.94,184.07,184.05,6.25391135]
[1753338788894,38.94,184.07,184.04,6.25391135]
[1753338789198,38.94,184.07,184.05,6.25391135]
[1753338789694,38.94,184.07,184.03,6.25391135]
[1753338789695,0.67,184.06,184.03,6.25391135]
[1753338789885,44.37295367,184.07,184.03,6.25391135]
[1753338790072,44.37295367,184.07,184.04,6.25391135]
[1753338790475,45.04295367,184.07,184.04,6.25391135]
[1753338790695,44.37295367,184.07,184.04,6.25391135]
[1753338791077,44.37295367,184.07,184.02,0.06]
[1753338791078,6.25391135,184.05,184.02,0.06]
[1753338791281,0.67,184.06,184.02,0.06]
[1753338791583,5.43360139,184.04,184.02,0.06]
[1753338791787,38.94,184.03,184.02,0.06]
[1753338792495,38.94,184.03,184.02,6.97391135]
[1753338792873,44.37300339,184.07,184.02,6.97391135]
[1753338793103,13.57953277,184.11,184.06,6.25391135]
[1753338793397,13.57953277,184.11,184.08,6.25391135]
[1753338793398,38.94,184.1,184.08,6.25391135]
[1753338793584,6.15212559,184.09,184.05,6.25391135]
[1753338793895,0.72,184.08,184.04,6.25391135]
[1753338794198,0.72,184.07,184.04,6.25391135]
[1753338794585,39.68,184.06,184.02,6.31391135]
[1753338794788,38.96,184.06,184.02,6.31391135]
[1753338795099,0.72,184.05,184.02,6.31391135]
[1753338795274,38.96,184.06,184.03,6.25391135]
[1753338795479,5.43330616,184.05,184.03,6.25391135]
[1753338796085,45.11330616,184.05,184.03,6.25391135]
[1753338796490,45.11330616,184.05,184.02,6.31391135]
[1753338796778,44.39330616,184.05,184.02,6.31391135]
[1753338796979,44.39330616,184.05,184.03,6.25391135]
[1753338797199,44.39330616,184.05,184.02,0.06]
[1753338797200,44.39330616,184.05,184.02,6.31391135]
[1753338797382,0.72,184.04,184.02,0.06]
[1753338797582,5.43389664,184.03,184.02,0.06]
[1753338797891,6.15389664,184.03,184.02,0.06]
[1753338798202,5.43389664,184.03,184.02,0.06]
[1753338798408,6.12389664,184.03,184.02,0.06]
[1753338800677,0.69,184.09,184.02,6.99391135]
[1753338800899,5.43218162,184.09,184.08,6.25391135]
[1753338801204,44.39218162,184.09,184.08,6.25391135]
[1753338801702,38.96,184.09,184.08,6.25391135]
[1753338801879,44.39216411,184.09,184.05,0.68]
[1753338802080,44.39216411,184.09,184.06,0.68]
[1753338802500,38.96,184.09,184.06,0.68]
[1753338802710,4.30601437,184.15,184.06,0.68]
[1753338802711,20.51914919,184.16,184.08,6.25391135]
[1753338802889,44.39035568,184.15,184.13,6.25391135]
[1753338803289,44.39035568,184.15,184.14,6.25391135]
[1753338803913,5.43035568,184.15,184.14,6.25391135]
[1753338804219,5.43035568,184.15,184.1,0.68]
[1753338804523,5.43035568,184.15,184.13,6.25391135]
[1753338805026,5.43006081,184.16,184.13,6.25391135]
[1753338805218,6.15006081,184.16,184.11,0.68]
[1753338805423,6.15006081,184.16,184.13,6.25391135]
[1753338806711,6.15006081,184.16,184.11,0.68]
[1753338806927,26.0,184.14,184.1,0.06]
[1753338807228,5.43124049,184.12,184.11,6.25391135]
[1753338808337,44.37102351,184.13,184.11,6.25391135]
[1753338809933,20.54665139,184.2,184.12,6.93391135]
[1753338810244,5.42917639,184.19,184.16,6.25391135]
[1753338810537,5.42917639,184.19,184.15,6.25391135]
[1753338810538,38.94,184.18,184.15,6.25391135]
[1753338810733,45.91391135,184.18,184.13,6.93391135]
[1753338810911,0.72,184.17,184.12,6.25391135]
[1753338811109,0.72,184.16,184.12,6.25391135]
[1753338811322,38.94,184.15,184.12,6.25391135]
[1753338811524,39.66,184.15,184.11,6.25391135]
[1753338811841,6.97391135,184.14,184.1,0.06]
[1753338812220,5.43124049,184.12,184.1,0.06]
[1753338812548,45.19391135,184.11,184.1,0.06]
[1753338812760,45.91391135,184.11,184.1,0.06]
[1753338813051,45.19391135,184.11,184.1,0.06]
[1753338813635,38.94,184.11,184.1,0.06]
[1753338813952,45.19391135,184.11,184.1,0.06]
[1753338814732,50.62544684,184.11,184.1,0.06]
[1753338814948,51.22544684,184.11,184.1,0.06]
[1753338817549,44.97153549,184.11,184.1,0.06]
[1753338817726,5.43153549,184.11,184.1,0.06]
[1753338820531,44.37131926,184.12,184.1,0.06]
[1753338820939,51.22523061,184.12,184.1,0.06]
[1753338821138,6.85391135,184.11,184.1,0.06]
[1753338821340,51.22523061,184.12,184.1,0.06]
[1753338821946,44.97131926,184.12,184.1,0.06]
[1753338822134,51.22523061,184.12,184.1,0.06]
[1753338822356,6.85391135,184.11,184.1,0.06]
[1753338822565,6.85391135,184.11,184.1,1e-08]
[1753338822744,29.07013081,184.11,184.1,1e-08]
[1753338824643,177.87013081,184.11,184.1,1e-08]
[1753338824849,182.13802891,184.11,184.1,1e-08]
[1753338825044,42.78468397,184.07,184.02,0.06]
[1753338825234,32.25391135,184.03,184.02,1e-08]
[1753338825435,71.19391135,184.03,184.02,1e-08]
[1753338825658,71.79391135,184.03,184.02,1e-08]
[1753338826743,77.22780799,184.03,184.02,1e-08]
[1753338828140,94.01249196,184.03,184.02,1e-08]
[1753338830861,97.06646095,184.03,183.99,1e-08]
[1753338831160,32.25391135,184.0,183.95,0.06]
[1753338831363,6.25391135,183.96,183.95,0.06]
[1753338831561,45.19391135,183.96,183.95,0.06]
[1753338831762,26.0,183.93,183.91,0.1]
[1753338831939,71.19391135,183.93,183.91,0.1]
[1753338832144,70.37695517,183.93,183.91,0.1]
[1753338832467,76.63086652,183.93,183.91,0.1]
[1753338832660,70.37695517,183.93,183.91,0.1]
[1753338832969,5.43596434,183.96,183.91,0.1]
[1753338833141,44.37596434,183.96,183.93,6.25391135]
[1753338833345,44.37596434,183.96,183.93,0.69]
[1753338833761,50.62987569,183.96,183.91,0.1]
[1753338833968,32.25391135,183.93,183.91,0.1]
[1753338834168,50.65105793,183.92,183.91,0.1]
[1753338834573,44.39714658,183.92,183.91,0.1]
[1753338834772,50.65105793,183.92,183.91,0.1]
[1753338835778,51.25105793,183.92,183.91,0.1]
[1753338835970,12.29105793,183.92,183.91,1e-08]
[1753338836276,5.43714658,183.92,183.91,1e-08]
[1753338836485,50.65105793,183.92,183.91,1e-08]
[1753338837184,44.39714658,183.92,183.91,1e-08]
[1753338838156,44.39714658,183.92,183.91,0.69000001]
[1753338838362,38.96,183.95,183.91,6.94391136]
[1753338838674,38.96,183.95,183.92,0.69]
[1753338838874,38.96,183.95,183.91,1e-08]
[1753338839391,38.96,183.95,183.91,0.69000001]
[1753338839557,45.21391135,183.95,183.91,0.69000001]
[1753338839879,26.0,183.92,183.91,1e-08]
[1753338840054,71.21391135,183.92,183.91,1e-08]
[1753338840463,13.58787113,183.99,183.91,6.94391136]
[1753338840654,5.4347826,184.0,183.97,6.25391135]
[1753338840857,5.43419193,184.02,183.98,0.69]
[1753338841058,5.43419193,184.02,183.93,6.619]
[1753338841059,32.25391135,183.99,183.93,6.619]
[1753338841268,71.21391135,183.98,183.93,6.619]
[1753338841467,45.21391135,183.97,183.93,6.619]
[1753338841667,6.25391135,183.95,183.91,0.69000001]
[1753338841888,38.96,183.95,183.91,1e-08]
[1753338842185,38.96,183.95,183.92,0.69]
[1753338842401,5.43655539,183.94,183.92,0.69]